[Event "*** SCC Grand Prix: Titled Tuesday Blitz"]
[Site "Chess.com"]
[Date "2020.06.23"]
[Round "3"]
[White "dodorox"]
[Black "catalin009"]
[Result "0-1"]
[WhiteElo "2027"]
[BlackElo "2305"]
[TimeControl "180+1"]
[EndTime "10:29:17 PDT"]
[Termination "catalin009 won on time"]

1. d4 {[%clk 0:03:00.9]} 1... Nf6 {[%clk 0:02:58.4]} 2. c4 {[%clk 0:03:00.5]}
2... e6 {[%clk 0:02:57.9]} 3. Nc3 {[%clk 0:02:59.7]} 3... Bb4 {[%clk 0:02:56]}
4. Bd2 {[%clk 0:02:59.8]} 4... O-O {[%clk 0:02:53.8]} 5. e3 {[%clk 0:02:59]}
5... b6 {[%clk 0:02:52.2]} 6. Nf3 {[%clk 0:02:54.9]} 6... Bb7 {[%clk 0:02:51.7]}
7. Rc1 {[%clk 0:02:52.3]} 7... c5 {[%clk 0:02:49]} 8. Bd3 {[%clk 0:02:47.6]}
8... cxd4 {[%clk 0:02:36.9]} 9. exd4 {[%clk 0:02:44.3]} 9... d5 {[%clk
0:02:37.2]} 10. cxd5 {[%clk 0:02:32.8]} 10... Nxd5 {[%clk 0:02:35.1]} 11. O-O
{[%clk 0:02:22.8]} 11... Nd7 {[%clk 0:02:25.9]} 12. Qe2 {[%clk 0:01:49.1]} 12...
N7f6 {[%clk 0:02:12.8]} 13. Rfd1 {[%clk 0:01:42.2]} 13... Bxc3 {[%clk
0:01:54.5]} 14. bxc3 {[%clk 0:01:41.8]} 14... Qc7 {[%clk 0:01:46.4]} 15. Ne5
{[%clk 0:01:35.6]} 15... Rac8 {[%clk 0:01:32.4]} 16. c4 {[%clk 0:01:24.4]} 16...
Ne7 {[%clk 0:01:26.9]} 17. Bb4 {[%clk 0:01:24.3]} 17... Rfd8 {[%clk 0:01:17]}
18. g4 {[%clk 0:00:56.9]} 18... Rxd4 {[%clk 0:00:46.8]} 19. Bxh7+ {[%clk
0:00:51.2]} 19... Nxh7 {[%clk 0:00:45.5]} 20. Rxd4 {[%clk 0:00:51.3]} 20... Nc6
{[%clk 0:00:45.5]} 21. Rd7 {[%clk 0:00:33.7]} 21... Qxe5 {[%clk 0:00:22]} 22.
Qxe5 {[%clk 0:00:31.9]} 22... Nxe5 {[%clk 0:00:22.9]} 23. Rxb7 {[%clk
0:00:30.8]} 23... Nf6 {[%clk 0:00:11.2]} 24. h3 {[%clk 0:00:27.2]} 24... Nd3
{[%clk 0:00:10.3]} 25. Rb1 {[%clk 0:00:17.1]} 25... Rxc4 {[%clk 0:00:10]} 26. a3
{[%clk 0:00:08.9]} 26... Rc2 {[%clk 0:00:05.4]} 27. Be1 {[%clk 0:00:07]} 27...
Ne4 {[%clk 0:00:04.7]} 28. Rxa7 {[%clk 0:00:05.8]} 28... Nexf2 {[%clk
0:00:02.4]} 29. Bxf2 {[%clk 0:00:05.2]} 29... Nxf2 {[%clk 0:00:03.3]} 30. Rxb6
{[%clk 0:00:02.7]} 30... Nxh3+ {[%clk 0:00:03.1]} 31. Kf1 {[%clk 0:00:02.8]}
31... Nf4 {[%clk 0:00:01.9]} 32. Ra8+ {[%clk 0:00:02.2]} 32... Kh7 {[%clk
0:00:01.8]} 33. a4 {[%clk 0:00:03.1]} 33... Kg6 {[%clk 0:00:02.1]} 34. a5 {[%clk
0:00:03.5]} 34... Kg5 {[%clk 0:00:02.6]} 35. a6 {[%clk 0:00:03.9]} 35... Kxg4
{[%clk 0:00:03.2]} 36. Rb4 {[%clk 0:00:04.3]} 36... Ra2 {[%clk 0:00:03]} 37. a7
{[%clk 0:00:04.1]} 37... g5 {[%clk 0:00:02.9]} 38. Rb7 {[%clk 0:00:02.7]} 38...
Kf3 {[%clk 0:00:01.5]} 39. Ke1 {[%clk 0:00:01.8]} 39... Re2+ {[%clk 0:00:01]}
40. Kd1 {[%clk 0:00:02.1]} 40... Ra2 {[%clk 0:00:01.3]} 41. Rxf7 {[%clk
0:00:01.2]} 41... Ra1+ {[%clk 0:00:02.2]} 0-1

[Event "*** SCC Grand Prix: Titled Tuesday Blitz"]
[Site "Chess.com"]
[Date "2020.06.23"]
[Round "3"]
[White "smshk35"]
[Black "Khvicha_Supatashvili"]
[Result "0-1"]
[WhiteElo "2359"]
[BlackElo "2644"]
[TimeControl "180+1"]
[EndTime "10:29:21 PDT"]
[Termination "Khvicha_Supatashvili won by resignation"]

1. e4 {[%clk 0:03:00.9]} 1... c5 {[%clk 0:02:59.3]} 2. Nf3 {[%clk 0:03:00.8]}
2... Nc6 {[%clk 0:02:59.1]} 3. d4 {[%clk 0:03:00.9]} 3... cxd4 {[%clk
0:02:59.2]} 4. Nxd4 {[%clk 0:03:01.8]} 4... Nf6 {[%clk 0:02:59.6]} 5. Nc3 {[%clk
0:03:01.9]} 5... d6 {[%clk 0:02:59.9]} 6. Bc4 {[%clk 0:02:57.9]} 6... e6 {[%clk
0:02:59.2]} 7. Be3 {[%clk 0:02:56.4]} 7... a6 {[%clk 0:02:59.3]} 8. Bb3 {[%clk
0:02:55.2]} 8... Na5 {[%clk 0:02:55.9]} 9. O-O {[%clk 0:02:47.3]} 9... Be7
{[%clk 0:02:51.8]} 10. Qf3 {[%clk 0:02:44.4]} 10... O-O {[%clk 0:02:46.5]} 11.
Rad1 {[%clk 0:02:44.2]} 11... Qc7 {[%clk 0:02:42.4]} 12. Qg3 {[%clk 0:02:39.5]}
12... Nxb3 {[%clk 0:02:37.1]} 13. cxb3 {[%clk 0:02:29.9]} 13... b5 {[%clk
0:02:13]} 14. Bh6 {[%clk 0:02:19.5]} 14... Ne8 {[%clk 0:02:11.2]} 15. Rc1 {[%clk
0:02:04.5]} 15... Qb7 {[%clk 0:02:08]} 16. Nc6 {[%clk 0:01:46.1]} 16... Qxc6
{[%clk 0:01:24.8]} 17. Nd5 {[%clk 0:01:45.4]} 17... Qd7 {[%clk 0:01:10.4]} 18.
Rc7 {[%clk 0:01:42.4]} 18... exd5 {[%clk 0:01:10]} 19. Rxd7 {[%clk 0:01:42.1]}
19... Bxd7 {[%clk 0:01:09.7]} 20. exd5 {[%clk 0:01:38.4]} 20... Bf5 {[%clk
0:01:08.5]} 21. Re1 {[%clk 0:01:36.9]} 21... Bf6 {[%clk 0:01:07.5]} 22. Bg5
{[%clk 0:01:36.7]} 22... Bxg5 {[%clk 0:01:04.3]} 23. Qxg5 {[%clk 0:01:37.6]}
23... Bg6 {[%clk 0:01:04]} 24. h4 {[%clk 0:01:35.3]} 24... Nf6 {[%clk
0:01:03.3]} 25. g4 {[%clk 0:01:32.8]} 25... h6 {[%clk 0:01:03]} 26. Qf4 {[%clk
0:01:32.3]} 26... Nxd5 {[%clk 0:01:00.4]} 27. Qxd6 {[%clk 0:01:32.6]} 27... Rfd8
{[%clk 0:01:00.4]} 28. Qg3 {[%clk 0:01:32.6]} 28... Rac8 {[%clk 0:00:58.6]} 29.
h5 {[%clk 0:01:32.9]} 29... Bh7 {[%clk 0:00:57.6]} 30. Rd1 {[%clk 0:01:29]}
30... Nf6 {[%clk 0:00:56]} 31. Rxd8+ {[%clk 0:01:28.4]} 31... Rxd8 {[%clk
0:00:55.9]} 32. a4 {[%clk 0:01:22.1]} 32... Rd1+ {[%clk 0:00:54.1]} 33. Kh2
{[%clk 0:01:19.5]} 33... Be4 {[%clk 0:00:50.7]} 34. Qb8+ {[%clk 0:01:12.3]}
34... Kh7 {[%clk 0:00:49.3]} 35. axb5 {[%clk 0:01:00.8]} 35... axb5 {[%clk
0:00:49]} 36. Qxb5 {[%clk 0:00:58.8]} 36... Nxg4+ {[%clk 0:00:46.7]} 37. Kg3
{[%clk 0:00:59.2]} 37... Nf6 {[%clk 0:00:45]} 38. Qe2 {[%clk 0:00:56.4]} 38...
Rg1+ {[%clk 0:00:41.4]} 39. Kf4 {[%clk 0:00:55.2]} 39... Rg5 {[%clk 0:00:25.9]}
40. b4 {[%clk 0:00:44.4]} 40... Rxh5 {[%clk 0:00:22.6]} 41. b5 {[%clk
0:00:31.6]} 41... Rf5+ {[%clk 0:00:21.5]} 42. Kg3 {[%clk 0:00:31.5]} 42... Rf3+
{[%clk 0:00:18.8]} 43. Kh2 {[%clk 0:00:28]} 43... Ng4+ {[%clk 0:00:14.1]} 44.
Kg1 {[%clk 0:00:25.4]} 44... Nxf2 {[%clk 0:00:14]} 45. b6 {[%clk 0:00:20.7]}
45... Nh3+ {[%clk 0:00:13.7]} 46. Kh1 {[%clk 0:00:15.6]} 46... Rf1+ {[%clk
0:00:10.6]} 47. Kh2 {[%clk 0:00:13.9]} 47... Rf2+ {[%clk 0:00:11.2]} 48. Qxf2
{[%clk 0:00:11.5]} 48... Nxf2 {[%clk 0:00:11.2]} 49. Kg3 {[%clk 0:00:12.4]}
49... Nd3 {[%clk 0:00:11.4]} 50. b3 {[%clk 0:00:11.8]} 50... Bb7 {[%clk
0:00:12.3]} 0-1

[Event "*** SCC Grand Prix: Titled Tuesday Blitz"]
[Site "Chess.com"]
[Date "2020.06.23"]
[Round "3"]
[White "Zurability"]
[Black "ArjunErigaisi2003"]
[Result "1-0"]
[WhiteElo "2686"]
[BlackElo "2899"]
[TimeControl "180+1"]
[EndTime "10:29:22 PDT"]
[Termination "Zurability won by resignation"]

1. Nf3 {[%clk 0:03:00.9]} 1... Nf6 {[%clk 0:02:52.7]} 2. c4 {[%clk 0:02:58.7]}
2... e6 {[%clk 0:02:52.4]} 3. g3 {[%clk 0:02:58.7]} 3... d5 {[%clk 0:02:52.6]}
4. Bg2 {[%clk 0:02:58.8]} 4... dxc4 {[%clk 0:02:52.7]} 5. Qa4+ {[%clk
0:02:54.1]} 5... Nbd7 {[%clk 0:02:53.1]} 6. Qxc4 {[%clk 0:02:53]} 6... c5 {[%clk
0:02:53.4]} 7. O-O {[%clk 0:02:49.5]} 7... b6 {[%clk 0:02:52.1]} 8. Nd4 {[%clk
0:02:28.3]} 8... Ne5 {[%clk 0:02:51.3]} 9. Qc2 {[%clk 0:02:23.4]} 9... Bd7
{[%clk 0:02:22.6]} 10. Nb3 {[%clk 0:02:10.1]} 10... Rc8 {[%clk 0:02:13.9]} 11.
Nc3 {[%clk 0:02:07.4]} 11... c4 {[%clk 0:01:52.9]} 12. Nd4 {[%clk 0:02:05.7]}
12... h5 {[%clk 0:01:53.4]} 13. d3 {[%clk 0:01:43]} 13... cxd3 {[%clk
0:01:44.5]} 14. exd3 {[%clk 0:01:43.9]} 14... h4 {[%clk 0:01:45.1]} 15. Re1
{[%clk 0:01:33.7]} 15... Neg4 {[%clk 0:01:22.3]} 16. Nf3 {[%clk 0:01:08.8]}
16... hxg3 {[%clk 0:01:13.1]} 17. hxg3 {[%clk 0:01:06.6]} 17... Bc6 {[%clk
0:01:06.4]} 18. Qe2 {[%clk 0:00:58.9]} 18... Bd6 {[%clk 0:00:53.5]} 19. d4
{[%clk 0:00:53.8]} 19... Kf8 {[%clk 0:00:53.1]} 20. Bd2 {[%clk 0:00:39.5]} 20...
Qc7 {[%clk 0:00:48.2]} 21. Nb5 {[%clk 0:00:34.8]} 21... Qb8 {[%clk 0:00:41]} 22.
Nxd6 {[%clk 0:00:31]} 22... Qxd6 {[%clk 0:00:41.9]} 23. Rac1 {[%clk 0:00:29.4]}
23... Kg8 {[%clk 0:00:28.6]} 24. Bf4 {[%clk 0:00:20.5]} 24... Qd5 {[%clk
0:00:20.6]} 25. Nh4 {[%clk 0:00:19.7]} 25... Qd7 {[%clk 0:00:21.1]} 26. Qa6
{[%clk 0:00:14.2]} 26... Nd5 {[%clk 0:00:16.9]} 27. Bd2 {[%clk 0:00:10.6]} 27...
Rf8 {[%clk 0:00:12.6]} 28. Qe2 {[%clk 0:00:08.7]} 28... Ngf6 {[%clk 0:00:09.9]}
29. Nf3 {[%clk 0:00:08.5]} 29... Bb5 {[%clk 0:00:10.3]} 30. Qe5 {[%clk
0:00:06.1]} 30... Ng4 {[%clk 0:00:08]} 31. Qg5 {[%clk 0:00:04.9]} 31... f5
{[%clk 0:00:07.8]} 32. Ne5 {[%clk 0:00:03.8]} 32... Nxe5 {[%clk 0:00:08.3]} 33.
Rxe5 {[%clk 0:00:04.2]} 33... Qf7 {[%clk 0:00:07.1]} 34. Rce1 {[%clk 0:00:03.8]}
34... Bd7 {[%clk 0:00:06.3]} 35. Bxd5 {[%clk 0:00:03.9]} 35... Rh5 {[%clk
0:00:06]} 36. Qf4 {[%clk 0:00:03.5]} 36... exd5 {[%clk 0:00:04]} 37. Re7 {[%clk
0:00:03.9]} 37... Qg6 {[%clk 0:00:03.8]} 38. Rxd7 {[%clk 0:00:04.1]} 38... Qh7
{[%clk 0:00:04.5]} 39. Qf3 {[%clk 0:00:04.5]} 39... Rh2 {[%clk 0:00:04.4]} 40.
Ree7 {[%clk 0:00:04]} 40... Kh8 {[%clk 0:00:02.5]} 41. Rxg7 {[%clk 0:00:03.5]}
41... Qh3 {[%clk 0:00:03.1]} 42. Rh7+ {[%clk 0:00:03.2]} 42... Qxh7 {[%clk
0:00:02.9]} 43. Rxh7+ {[%clk 0:00:03.9]} 43... Rxh7 {[%clk 0:00:03.8]} 44. Bf4
{[%clk 0:00:04.3]} 44... Rd8 {[%clk 0:00:03.7]} 45. Be5+ {[%clk 0:00:04.7]}
45... Kg8 {[%clk 0:00:04.4]} 46. Qxf5 {[%clk 0:00:05.3]} 46... Rh6 {[%clk
0:00:05]} 47. Qg5+ {[%clk 0:00:05.6]} 1-0

[Event "*** SCC Grand Prix: Titled Tuesday Blitz"]
[Site "Chess.com"]
[Date "2020.06.23"]
[Round "3"]
[White "saikrishnaReturns"]
[Black "obliviate12"]
[Result "0-1"]
[WhiteElo "2630"]
[BlackElo "2848"]
[TimeControl "180+1"]
[EndTime "10:29:22 PDT"]
[Termination "obliviate12 won by checkmate"]

1. e4 {[%clk 0:03:00.9]} 1... c6 {[%clk 0:03:00.2]} 2. d3 {[%clk 0:03:00]} 2...
d5 {[%clk 0:03:01.1]} 3. Nd2 {[%clk 0:03:00.7]} 3... g6 {[%clk 0:03:00.4]} 4.
Ngf3 {[%clk 0:02:58.8]} 4... Bg7 {[%clk 0:03:00.6]} 5. g3 {[%clk 0:02:59]} 5...
e5 {[%clk 0:03:00.3]} 6. Bg2 {[%clk 0:02:59.2]} 6... Ne7 {[%clk 0:03:00.8]} 7.
O-O {[%clk 0:02:59.7]} 7... O-O {[%clk 0:03:00.2]} 8. Re1 {[%clk 0:03:00]} 8...
d4 {[%clk 0:02:55.5]} 9. a4 {[%clk 0:02:59.3]} 9... c5 {[%clk 0:02:53.2]} 10.
Nc4 {[%clk 0:02:57.1]} 10... Nbc6 {[%clk 0:02:44.7]} 11. Nfd2 {[%clk 0:02:54.2]}
11... Be6 {[%clk 0:02:36.9]} 12. f4 {[%clk 0:02:52]} 12... f6 {[%clk 0:02:12.9]}
13. a5 {[%clk 0:02:09.2]} 13... Qd7 {[%clk 0:02:11.2]} 14. b3 {[%clk 0:02:03.4]}
14... Rac8 {[%clk 0:01:35.6]} 15. Ba3 {[%clk 0:01:57.9]} 15... Nb4 {[%clk
0:01:35.7]} 16. Nf3 {[%clk 0:01:42]} 16... Nec6 {[%clk 0:01:35.4]} 17. Bxb4
{[%clk 0:01:21.2]} 17... cxb4 {[%clk 0:01:35.1]} 18. Rf1 {[%clk 0:00:54.7]}
18... exf4 {[%clk 0:01:28.2]} 19. gxf4 {[%clk 0:00:55.6]} 19... Bh6 {[%clk
0:01:28.4]} 20. Nh4 {[%clk 0:00:53.8]} 20... Kh8 {[%clk 0:01:27.3]} 21. f5
{[%clk 0:00:52.9]} 21... Bxc4 {[%clk 0:01:17.5]} 22. bxc4 {[%clk 0:00:34]} 22...
Be3+ {[%clk 0:01:18.4]} 23. Kh1 {[%clk 0:00:33.7]} 23... g5 {[%clk 0:01:18.8]}
24. Nf3 {[%clk 0:00:32.5]} 24... g4 {[%clk 0:01:19]} 25. Ng1 {[%clk 0:00:29.6]}
25... Ne5 {[%clk 0:01:16.6]} 26. Ne2 {[%clk 0:00:24.1]} 26... h5 {[%clk
0:01:11.5]} 27. Qe1 {[%clk 0:00:24.1]} 27... Qh7 {[%clk 0:01:01.8]} 28. Qxb4
{[%clk 0:00:23.6]} 28... h4 {[%clk 0:01:01.8]} 29. Rfb1 {[%clk 0:00:23.7]} 29...
Rf7 {[%clk 0:00:56.4]} 30. Qd6 {[%clk 0:00:23.5]} 30... Qg7 {[%clk 0:00:30]} 31.
h3 {[%clk 0:00:17]} 31... Rg8 {[%clk 0:00:26.3]} 32. a6 {[%clk 0:00:13.9]} 32...
b6 {[%clk 0:00:18.9]} 33. c5 {[%clk 0:00:14.1]} 33... Rd7 {[%clk 0:00:17.9]} 34.
Qe6 {[%clk 0:00:13.3]} 34... Re7 {[%clk 0:00:17.5]} 35. Qd6 {[%clk 0:00:13.5]}
35... bxc5 {[%clk 0:00:12.8]} 36. Qxc5 {[%clk 0:00:13.5]} 36... Rc7 {[%clk
0:00:12]} 37. Qa3 {[%clk 0:00:13.5]} 37... gxh3 {[%clk 0:00:11]} 38. Bxh3 {[%clk
0:00:12.9]} 38... Rxc2 {[%clk 0:00:11.9]} 39. Ra2 {[%clk 0:00:13.3]} 39... Rxa2
{[%clk 0:00:10.1]} 40. Qxa2 {[%clk 0:00:14.2]} 40... Qh7 {[%clk 0:00:10.5]} 41.
Qb3 {[%clk 0:00:13.4]} 41... Qh5 {[%clk 0:00:10.5]} 42. Bg2 {[%clk 0:00:10.9]}
42... h3 {[%clk 0:00:10.2]} 43. Qxg8+ {[%clk 0:00:11.8]} 43... Kxg8 {[%clk
0:00:09.9]} 44. Rb8+ {[%clk 0:00:11.8]} 44... Kg7 {[%clk 0:00:09.8]} 45. Rb7+
{[%clk 0:00:12.2]} 45... Kh6 {[%clk 0:00:10]} 46. Bf1 {[%clk 0:00:12.6]} 46...
Qf3+ {[%clk 0:00:10.1]} 47. Kh2 {[%clk 0:00:13.1]} 47... Ng4# {[%clk 0:00:09.9]}
0-1

[Event "*** SCC Grand Prix: Titled Tuesday Blitz"]
[Site "Chess.com"]
[Date "2020.06.23"]
[Round "3"]
[White "Sashadav97"]
[Black "Orest_Vovk"]
[Result "1-0"]
[WhiteElo "2604"]
[BlackElo "2393"]
[TimeControl "180+1"]
[EndTime "10:29:23 PDT"]
[Termination "Sashadav97 won on time"]

1. d4 {[%clk 0:03:00.9]} 1... h6 {[%clk 0:02:58.8]} 2. e4 {[%clk 0:02:59.1]}
2... g5 {[%clk 0:02:58.9]} 3. h4 {[%clk 0:02:55.4]} 3... g4 {[%clk 0:02:58.6]}
4. Bc4 {[%clk 0:02:51.1]} 4... d6 {[%clk 0:02:54.6]} 5. Nc3 {[%clk 0:02:45.6]}
5... Bg7 {[%clk 0:02:53]} 6. Nge2 {[%clk 0:02:43.7]} 6... Nd7 {[%clk 0:02:41]}
7. Be3 {[%clk 0:02:42.2]} 7... Nf8 {[%clk 0:02:39]} 8. Qd2 {[%clk 0:02:37.7]}
8... c6 {[%clk 0:02:37.6]} 9. Bb3 {[%clk 0:02:35.7]} 9... Qa5 {[%clk 0:02:33.9]}
10. O-O-O {[%clk 0:02:35.1]} 10... h5 {[%clk 0:02:24.1]} 11. Kb1 {[%clk
0:02:33.7]} 11... Qc7 {[%clk 0:02:11.4]} 12. Rhf1 {[%clk 0:02:27]} 12... Ng6
{[%clk 0:02:10.1]} 13. f3 {[%clk 0:02:25.8]} 13... gxf3 {[%clk 0:02:09.6]} 14.
Rxf3 {[%clk 0:02:26.7]} 14... Nf6 {[%clk 0:01:59.9]} 15. Bg5 {[%clk 0:02:13.4]}
15... Bg4 {[%clk 0:01:52.7]} 16. Rf2 {[%clk 0:02:11.9]} 16... Rf8 {[%clk
0:01:40.1]} 17. d5 {[%clk 0:02:10.1]} 17... c5 {[%clk 0:01:34.2]} 18. Ba4+
{[%clk 0:02:01.6]} 18... Bd7 {[%clk 0:01:30.5]} 19. Nb5 {[%clk 0:01:48.9]} 19...
Qb6 {[%clk 0:01:26.2]} 20. Nec3 {[%clk 0:01:47.7]} 20... Ne5 {[%clk 0:01:14.6]}
21. Rdf1 {[%clk 0:01:31.9]} 21... O-O-O {[%clk 0:01:13.1]} 22. Bxf6 {[%clk
0:01:27.8]} 22... Bxf6 {[%clk 0:01:12]} 23. Rxf6 {[%clk 0:01:27.7]} 23... exf6
{[%clk 0:01:08.7]} 24. Rxf6 {[%clk 0:01:28.6]} 24... Bg4 {[%clk 0:00:51.5]} 25.
Qf4 {[%clk 0:01:11.8]} 25... Rfe8 {[%clk 0:00:38.2]} 26. Bb3 {[%clk 0:01:02.8]}
26... a6 {[%clk 0:00:33.6]} 27. Na3 {[%clk 0:01:00.5]} 27... Qb4 {[%clk
0:00:29.2]} 28. Ka1 {[%clk 0:00:36.7]} 28... c4 {[%clk 0:00:27.2]} 29. Ba4
{[%clk 0:00:35]} 29... b5 {[%clk 0:00:27.1]} 30. Bxb5 {[%clk 0:00:35.2]} 30...
axb5 {[%clk 0:00:27]} 31. Naxb5 {[%clk 0:00:36.1]} 31... Qc5 {[%clk 0:00:16.7]}
32. a3 {[%clk 0:00:35.4]} 32... Re7 {[%clk 0:00:15.6]} 33. Qh6 {[%clk
0:00:31.8]} 33... Red7 {[%clk 0:00:13.1]} 34. Ka2 {[%clk 0:00:27.7]} 34... Kb8
{[%clk 0:00:10.8]} 35. Qd2 {[%clk 0:00:24.1]} 35... Rb7 {[%clk 0:00:09.9]} 36.
a4 {[%clk 0:00:19.2]} 36... Qb4 {[%clk 0:00:10]} 37. Qf4 {[%clk 0:00:17.2]}
37... Qc5 {[%clk 0:00:06.3]} 38. Rxd6 {[%clk 0:00:14.8]} 38... Rxd6 {[%clk
0:00:05.6]} 39. Qxe5 {[%clk 0:00:15]} 39... Rd7 {[%clk 0:00:03.2]} 40. Nxd6
{[%clk 0:00:14.3]} 40... Qxd6 {[%clk 0:00:03.3]} 41. Qe8+ {[%clk 0:00:13.9]}
41... Kb7 {[%clk 0:00:01.1]} 42. e5 {[%clk 0:00:10.3]} 42... Qe7 {[%clk
0:00:01.6]} 43. Qh8 {[%clk 0:00:10.2]} 43... Qd8 {[%clk 0:00:01.5]} 44. Qf6
{[%clk 0:00:06.9]} 44... Bh3 {[%clk 0:00:01]} 45. Qc6+ {[%clk 0:00:06.5]} 1-0

[Event "*** SCC Grand Prix: Titled Tuesday Blitz"]
[Site "Chess.com"]
[Date "2020.06.23"]
[Round "3"]
[White "RojonR"]
[Black "DonPreuss"]
[Result "1-0"]
[WhiteElo "2427"]
[BlackElo "2194"]
[TimeControl "180+1"]
[EndTime "10:29:24 PDT"]
[Termination "RojonR won by resignation"]

1. g4 {[%clk 0:03:00.9]} 1... Nc6 {[%clk 0:02:55]} 2. Bg2 {[%clk 0:02:57]} 2...
e5 {[%clk 0:02:54.8]} 3. c4 {[%clk 0:02:47.1]} 3... Bc5 {[%clk 0:02:52.8]} 4. e3
{[%clk 0:02:45.9]} 4... a6 {[%clk 0:02:52.7]} 5. Ne2 {[%clk 0:02:45.4]} 5... d6
{[%clk 0:02:52.8]} 6. h3 {[%clk 0:02:43.8]} 6... Nge7 {[%clk 0:02:49.9]} 7. d4
{[%clk 0:02:38.6]} 7... Ba7 {[%clk 0:02:48.8]} 8. Nbc3 {[%clk 0:02:31.4]} 8...
O-O {[%clk 0:02:39.1]} 9. d5 {[%clk 0:02:07.1]} 9... Nb8 {[%clk 0:02:39]} 10. e4
{[%clk 0:02:06.5]} 10... Nd7 {[%clk 0:02:34.9]} 11. Ng3 {[%clk 0:01:56]} 11...
Ng6 {[%clk 0:02:32.1]} 12. Nf5 {[%clk 0:01:33.7]} 12... Nf4 {[%clk 0:02:32.1]}
13. Qf3 {[%clk 0:01:25.8]} 13... Nc5 {[%clk 0:02:25]} 14. Bxf4 {[%clk 0:01:18]}
14... exf4 {[%clk 0:02:16.7]} 15. O-O-O {[%clk 0:01:14.9]} 15... b5 {[%clk
0:01:57.5]} 16. Qxf4 {[%clk 0:00:48]} 16... bxc4 {[%clk 0:01:56.3]} 17. Bf1
{[%clk 0:00:47.3]} 17... Nd3+ {[%clk 0:01:22.9]} 18. Bxd3 {[%clk 0:00:46.4]}
18... cxd3 {[%clk 0:01:23.8]} 19. Rxd3 {[%clk 0:00:45.9]} 19... Qf6 {[%clk
0:01:20.4]} 20. g5 {[%clk 0:00:37.1]} 20... Qe5 {[%clk 0:01:20.4]} 21. Qxe5
{[%clk 0:00:31.7]} 21... dxe5 {[%clk 0:01:21.3]} 22. Ne7+ {[%clk 0:00:31.7]}
22... Kh8 {[%clk 0:01:21.1]} 23. Nxc8 {[%clk 0:00:27.8]} 23... Raxc8 {[%clk
0:01:20.9]} 24. f3 {[%clk 0:00:23.5]} 24... f6 {[%clk 0:01:19.6]} 25. gxf6
{[%clk 0:00:22.2]} 25... Rxf6 {[%clk 0:01:19.1]} 26. Rf1 {[%clk 0:00:16.6]}
26... Rcf8 {[%clk 0:01:17.8]} 27. b4 {[%clk 0:00:15.7]} 27... Rh6 {[%clk
0:01:11.5]} 28. a4 {[%clk 0:00:15.7]} 28... Rxh3 {[%clk 0:01:10.5]} 29. b5
{[%clk 0:00:16.3]} 29... axb5 {[%clk 0:01:08.3]} 30. Nxb5 {[%clk 0:00:17.2]}
30... Bb6 {[%clk 0:01:05.2]} 31. Rc3 {[%clk 0:00:11.1]} 31... Rh6 {[%clk
0:00:46.4]} 32. Kc2 {[%clk 0:00:06.5]} 32... g5 {[%clk 0:00:45.2]} 33. Nxc7
{[%clk 0:00:06.5]} 33... Bd4 {[%clk 0:00:36.9]} 34. Rc4 {[%clk 0:00:05.3]} 34...
Rc8 {[%clk 0:00:32.7]} 35. a5 {[%clk 0:00:03.8]} 35... Rd6 {[%clk 0:00:30.5]}
36. Rb1 {[%clk 0:00:02.4]} 36... Rd7 {[%clk 0:00:28.9]} 37. Rb7 {[%clk 0:00:03]}
37... h5 {[%clk 0:00:27]} 38. a6 {[%clk 0:00:03.5]} 38... g4 {[%clk 0:00:25.9]}
39. a7 {[%clk 0:00:04]} 39... Bxa7 {[%clk 0:00:25.8]} 40. Rxa7 {[%clk
0:00:03.9]} 40... gxf3 {[%clk 0:00:25.9]} 41. Kd2 {[%clk 0:00:04.5]} 41... h4
{[%clk 0:00:24.9]} 42. Ke1 {[%clk 0:00:04.9]} 42... Rf7 {[%clk 0:00:23.9]} 43.
Kf2 {[%clk 0:00:05.4]} 43... h3 {[%clk 0:00:23.9]} 44. d6 {[%clk 0:00:06]} 44...
h2 {[%clk 0:00:23.1]} 45. Rc1 {[%clk 0:00:06.5]} 45... Rh7 {[%clk 0:00:20.5]}
46. Rh1 {[%clk 0:00:06.3]} 46... Rg8 {[%clk 0:00:20.4]} 47. Nb5 {[%clk
0:00:06.2]} 47... Rg2+ {[%clk 0:00:18.6]} 48. Kxf3 {[%clk 0:00:05.9]} 48... Rg1
{[%clk 0:00:18.8]} 49. Rxh7+ {[%clk 0:00:05.8]} 49... Kxh7 {[%clk 0:00:18.4]}
50. Rxh2+ {[%clk 0:00:06.7]} 50... Kg7 {[%clk 0:00:17.8]} 51. Rd2 {[%clk
0:00:06.8]} 51... Rb1 {[%clk 0:00:16.5]} 52. d7 {[%clk 0:00:06.9]} 1-0